bitfinex/quotes_SOLUSD_20220128
["timestamp","ask_amount","ask_price","bid_price","bid_amount"]
[1643407754830,16.308,92.07,91.997,0.25]
[1643407756051,16.308,92.07,91.997,6.25]
[1643407756258,16.308,92.07,91.997,29.8502]
[1643407756652,0.25,92.069,91.982,24.5875]
[1643407756851,16.31,92.06,91.96,22.7319]
[1643407757253,0.25,92.059,91.96,22.7319]
[1643407757750,0.25,92.059,91.981,41.11884218]
[1643407757952,0.25,92.059,91.981,40.86884218]
[1643407758351,0.25,92.094,91.981,40.86884218]
[1643407758953,16.312,92.05,91.981,40.86884218]
[1643407759351,0.25,92.049,91.981,40.86884218]
[1643407760355,16.313,92.04,91.981,40.86884218]
[1643407762255,16.313,92.04,91.96,22.7319]
[1643407762459,16.313,92.04,91.94,15.61]
[1643407762657,16.313,92.04,91.911,47.5211]
[1643407762861,64.64051772,92.039,91.911,47.5211]
[1643407763057,16.323,92.01,91.912,0.25]
[1643407763257,16.323,92.01,91.912,36.20521791]
[1643407764458,16.316,92.03,91.912,36.20521791]
[1643407765057,16.316,92.03,91.913,107.5]
[1643407765358,0.25,92.029,91.922,6.0]
[1643407765560,0.25,92.029,91.93,16.314]
[1643407765759,0.25,92.029,91.931,41.37551125]
[1643407765960,0.25,92.029,91.931,66.13651125]
[1643407766361,0.25,92.029,91.932,107.5]
[1643407766761,16.317,92.02,91.933,0.25]
[1643407768461,15.817,92.02,91.933,0.25]
[1643407775073,0.25,92.019,91.933,0.25]
[1643407775469,16.317,92.01,91.933,0.25]
[1643407778476,1.4713739,92.038,91.933,0.25]
[1643407778477,16.314,92.03,91.933,0.25]
[1643407778677,16.314,92.03,91.943,107.5]
[1643407778875,16.314,92.03,91.95,15.61]
[1643407779074,16.314,92.03,91.953,107.5]
[1643407779276,16.314,92.03,91.954,0.25]
[1643407780478,16.314,92.03,91.952,0.25]
[1643407788816,0.25,92.029,91.96,15.61]
[1643407788990,0.25,92.029,91.97,6.0]
[1643407789290,16.314,92.03,91.971,25.1281]
[1643407790492,16.311,92.05,91.971,25.1281]
[1643407792498,0.25,92.049,91.971,25.1281]
[1643407793094,0.25,92.049,91.972,107.5]
[1643407793296,0.25,92.049,91.973,0.25]
[1643407793495,0.25,92.049,91.971,25.1281]
[1643407794596,0.25,92.049,91.972,107.5]
[1643407794802,16.061,92.05,91.973,0.25]
[1643407795300,16.061,92.05,91.972,107.5]
[1643407796524,16.061,92.05,91.973,0.25]
[1643407797526,16.061,92.05,91.982,6.0]
[1643407797724,16.061,92.05,91.983,42.87330067]
[1643407798024,16.061,92.05,91.983,43.12330067]
[1643407798225,16.061,92.05,91.983,42.87330067]
[1643407798423,16.061,92.05,91.984,0.25]
[1643407799626,16.061,92.05,91.984,23.8077]
[1643407800029,16.061,92.05,91.984,131.3077]
[1643407800225,16.061,92.05,91.984,107.75]
[1643407800826,16.061,92.05,91.985,23.6198]
[1643407801328,16.061,92.05,91.986,0.25]
[1643407802325,16.061,92.05,91.985,0.25]
[1643407802726,16.061,92.05,91.985,23.0194]
[1643407804029,16.061,92.05,91.957,1.50578419]
[1643407804230,16.061,92.05,91.954,1.50578419]
[1643407804633,1.4713739,92.048,91.95,15.61]
[1643407804831,16.318,92.02,91.95,15.61]
[1643407805232,16.318,92.02,91.951,48.83205488]
[1643407805832,16.318,92.02,91.952,0.25]
[1643407811942,16.318,92.02,91.952,22.8268]
[1643407812141,16.318,92.02,91.952,22.5768]
[1643407812341,16.318,92.02,91.953,0.25]
[1643407825184,16.318,92.02,91.953,107.75]
[1643407825386,16.318,92.02,91.955,107.5]
[1643407825789,16.318,92.02,91.956,0.25]
[1643407826486,1.4713739,92.036,91.96,15.61]
[1643407826685,1.4713739,92.041,91.96,15.61]
[1643407826887,1.4713739,92.041,91.961,0.25]
[1643407827089,1.4713739,92.041,91.961,107.75]
[1643407827290,1.4713739,92.045,91.961,107.75]
[1643407827989,16.312,92.04,91.961,107.75]
[1643407829195,15.812,92.04,91.961,107.75]
[1643407834901,15.812,92.04,91.962,2.95669142]
[1643407835399,1.4713739,92.05,91.963,0.25]
[1643407835599,1.4713739,92.056,91.973,107.5]
[1643407835800,1.4713739,92.056,91.972,6.0]
[1643407835801,1.4713739,92.057,91.981,107.5]
[1643407836002,17.7803739,92.06,91.981,107.5]
[1643407836199,16.309,92.06,91.982,3.20669142]
[1643407837198,1.4713739,92.063,91.982,3.20669142]
[1643407837598,1.4713739,92.063,91.982,13.77669142]
[1643407837799,1.4713739,92.064,91.983,110.45669142]
[1643407837999,1.4713739,92.067,91.993,54.58185737]
[1643407838200,1.4713739,92.071,92.0,15.61]
[1643407838400,1.4713739,92.071,92.001,107.75]
[1643407838704,1.4713739,92.077,92.001,107.75]
[1643407838898,1.4713739,92.075,92.001,107.75]
[1643407839099,1.4713739,92.076,92.001,107.75]
[1643407839499,16.305,92.08,92.001,107.75]
[1643407839500,1.4713739,92.077,92.001,107.75]
[1643407839900,23.5935,92.079,92.001,107.75]
[1643407840501,16.307,92.07,92.001,0.25]
[1643407844705,16.307,92.07,92.001,107.75]
[1643407845404,16.307,92.07,92.001,0.25]
[1643407845608,16.307,92.07,92.012,107.5]
[1643407845805,16.307,92.07,92.014,107.5]
[1643407846206,1.4713739,92.086,92.015,0.25]
[1643407846409,1.4713739,92.088,92.015,0.25]
[1643407847410,1.4713739,92.089,92.015,0.25]
[1643407847809,1.4713739,92.089,92.02,15.61]
[1643407848010,16.305,92.08,92.021,107.5]
[1643407848211,16.305,92.08,92.021,107.75]
[1643407849235,1.4713739,92.092,92.021,107.75]
[1643407849739,24.4977,92.098,92.021,107.75]
[1643407850336,1.4713739,92.102,92.021,107.75]
[1643407850538,16.302,92.1,92.021,107.75]
[1643407851138,16.302,92.1,92.032,48.04654337]
[1643407851340,16.302,92.1,92.04,15.61]
[1643407851740,16.302,92.1,92.041,0.25]
[1643407852543,16.302,92.1,92.041,107.75]
[1643407853341,1.4713739,92.11,92.041,107.75]
[1643407853542,1.4713739,92.111,92.041,107.75]
[1643407853743,1.4713739,92.113,92.041,107.75]
[1643407854844,1.4713739,92.112,92.041,107.75]
[1643407855042,22.7947,92.119,92.041,107.75]
[1643407855043,1.4713739,92.116,92.041,107.75]
[1643407855251,1.4713739,92.118,92.041,107.75]
[1643407855644,22.7947,92.119,92.041,107.75]
[1643407856244,17.7693739,92.12,92.041,107.75]
[1643407856444,17.7693739,92.12,92.041,116.15]
[1643407857053,1.4713739,92.117,92.041,116.15]
[1643407857247,0.9713739,92.119,92.041,116.15]
[1643407857447,16.298,92.12,92.041,116.15]
[1643407858048,16.298,92.12,92.042,2.95669142]
[1643407858248,16.298,92.12,92.043,0.25]
[1643407858647,16.298,92.12,92.044,2.95669142]
[1643407858849,16.298,92.12,92.045,0.25]
[1643407859052,16.298,92.12,92.05,15.61]
[1643407859251,16.298,92.12,92.051,0.25]
[1643407859454,16.298,92.12,92.052,107.5]
[1643407859852,16.298,92.12,92.053,0.25]
[1643407860254,23.1538,92.137,92.053,3.20669142]
[1643407860456,23.1538,92.137,92.054,2.95669142]
[1643407860854,23.1538,92.137,92.055,0.25]
[1643407861154,23.1538,92.137,92.061,47.41884977]
[1643407861356,23.1538,92.137,92.062,107.75]
[1643407861555,23.1538,92.137,92.064,107.5]
[1643407861755,23.1538,92.137,92.065,0.25]
[1643407862156,16.295,92.14,92.065,0.25]
[1643407862656,16.295,92.14,92.066,2.95669142]
[1643407862855,16.295,92.14,92.067,0.25]
[1643407863056,54.315,92.16,92.067,0.25]
[1643407863255,54.315,92.16,92.067,3.20669142]
[1643407864054,54.315,92.16,92.07,15.61]
[1643407864256,54.315,92.16,92.071,107.75]
[1643407864855,16.291,92.16,92.072,2.95669142]
[1643407865257,16.291,92.16,92.073,0.25]
[1643407865656,16.291,92.16,92.074,2.95669142]
[1643407865856,16.291,92.16,92.075,0.25]
[1643407866057,16.291,92.16,92.08,15.61]
[1643407866259,16.291,92.16,92.081,107.75]
[1643407866460,24.8796,92.168,92.081,110.70669142]
[1643407866661,24.8796,92.168,92.083,107.5]
[1643407866860,24.8796,92.168,92.084,0.25]
[1643407867059,24.8796,92.168,92.084,3.20669142]
[1643407867263,24.8796,92.168,92.085,2.95669142]
[1643407867660,16.291,92.16,92.086,0.25]
[1643407867861,16.291,92.16,92.1,15.61]
[1643407868061,16.291,92.16,92.101,44.47514805]
[1643407868360,16.291,92.16,92.101,44.72514805]
[1643407868561,16.291,92.16,92.102,22.9141]
[1643407868765,16.291,92.16,92.103,0.25]
[1643407869162,22.9217,92.189,92.103,11.41]
[1643407869363,2.92660539,92.208,92.112,6.0]
[1643407869563,25.75117384,92.215,92.12,15.61]
[1643407869769,25.75117384,92.215,92.121,0.25]
[1643407869962,22.9217,92.215,92.121,107.75]
[1643407870462,22.9217,92.215,92.121,122.09669142]
[1643407870863,22.9217,92.215,92.131,6.0]
[1643407871064,22.9217,92.215,92.132,61.0838192]
[1643407871263,22.9217,92.215,92.132,61.3338192]
[1643407872065,22.9217,92.215,92.132,168.8338192]
[1643407872866,22.9217,92.215,92.132,61.3338192]
[1643407873069,16.283,92.21,92.132,61.3338192]
[1643407877395,16.283,92.21,92.132,168.8338192]
[1643407879295,16.283,92.21,92.142,6.0]
[1643407879496,16.283,92.21,92.143,23.0118]
[1643407879695,16.283,92.21,92.143,23.2618]
[1643407881697,23.5824,92.229,92.143,23.2618]
[1643407881898,23.5824,92.229,92.144,24.9576]
[1643407882099,23.5824,92.229,92.145,107.5]
[1643407882298,23.5824,92.229,92.145,107.75]
[1643407882501,23.5824,92.229,92.145,117.05]
[1643407882900,23.5824,92.229,92.146,2.95669142]
[1643407883098,23.5824,92.229,92.15,15.61]
[1643407883299,23.5824,92.229,92.151,0.25]
[1643407883500,23.5824,92.229,92.151,107.75]
[1643407884602,16.281,92.22,92.151,107.75]
[1643407885006,16.281,92.22,92.161,6.0]
[1643407885201,16.281,92.22,92.162,24.7485]
[1643407885402,16.281,92.22,92.163,37.27262921]
[1643407885901,16.281,92.22,92.15,15.61]
[1643407886102,16.281,92.22,92.07,54.277]
[1643407886337,23.0624,92.219,92.13,15.61]
[1643407886501,23.0624,92.219,92.095,46.0118]
[1643407886502,16.287,92.2,92.11,15.61]
[1643407886903,16.287,92.2,92.111,43.33490363]
[1643407887305,23.2471,92.199,92.111,43.33490363]
[1643407887509,16.288,92.18,92.111,43.33490363]
[1643407889106,16.288,92.18,92.112,0.25]
[1643407890811,16.288,92.18,92.111,43.33490363]
[1643407891209,16.288,92.18,92.112,0.25]
[1643407893943,16.288,92.18,92.111,43.33490363]
[1643407894545,16.288,92.18,92.095,46.0118]
[1643407894745,16.29,92.17,92.096,0.25]
[1643407895546,16.29,92.17,92.096,39.82732112]
[1643407897956,16.29,92.17,92.08,15.61]
[1643407898150,16.29,92.17,92.051,22.9483]
[1643407898349,22.5455,92.169,92.03,15.61]
[1643407898550,16.301,92.13,92.03,15.61]
[1643407898750,16.301,92.13,92.015,22.9483]
[1643407898948,16.301,92.13,92.036,35.96734963]
[1643407899350,37.38221588,92.13,92.036,35.96734963]
[1643407901653,52.99221588,92.13,92.036,35.96734963]
[1643407902255,52.99221588,92.13,92.009,24.609]
[1643407902452,52.99221588,92.13,92.01,0.25]
[1643407903654,52.99221588,92.13,91.994,35.80742414]
[1643407905856,52.99221588,92.13,91.995,107.5]
[1643407906258,52.99221588,92.13,91.996,0.25]
[1643407906660,31.911,92.13,91.996,0.25]
[1643407909467,31.911,92.13,91.995,107.5]
[1643407909966,16.305,92.09,91.995,107.5]
[1643407910567,16.305,92.09,91.994,35.55742414]
[1643407910765,16.305,92.09,91.995,0.25]
[1643407916898,16.305,92.09,91.995,107.75]
[1643407920200,16.305,92.09,91.996,2.95669142]
[1643407920499,16.305,92.09,91.997,0.25]
[1643407922101,16.305,92.09,92.005,6.0]
[1643407922302,16.305,92.09,92.007,107.5]
[1643407922503,16.305,92.09,92.006,22.8271]
[1643407922902,16.305,92.09,92.007,24.4991]
[1643407923313,16.305,92.09,92.008,0.25]
[1643407928615,15.61,92.13,92.008,0.25]
[1643407928616,16.301,92.11,92.02,15.61]
[1643407928811,2.92660539,92.148,92.023,0.3230072]
[1643407929010,2.92660539,92.159,92.032,6.0]
[1643407929211,47.603,92.158,92.033,24.7411]
[1643407929410,47.603,92.158,92.033,24.9911]
[1643407929610,2.61838933,92.157,92.033,24.9911]
[1643407930011,16.298,92.13,92.033,24.9911]
[1643407931314,24.4232,92.129,92.033,24.9911]
[1643407931513,16.299,92.12,92.033,24.9911]
[1643407933113,16.299,92.12,92.033,24.7411]
[1643407934613,16.299,92.12,92.034,0.25]
[1643407935713,16.299,92.12,92.034,107.75]
[1643407935913,16.299,92.12,92.034,0.25]
[1643407936216,24.4232,92.129,92.035,2.95669142]
[1643407936415,24.4232,92.129,92.044,107.5]
[1643407936618,16.296,92.14,92.044,107.5]
[1643407936815,23.7104,92.139,92.046,107.5]
[1643407937218,23.7104,92.139,92.047,0.25]
[1643407937820,2.92660539,92.178,92.05,15.61]
[1643407938020,54.311,92.18,92.06,6.0]
[1643407938218,2.92660539,92.205,92.071,107.5]
[1643407938419,15.61,92.22,92.072,47.3846]
[1643407938420,2.92660539,92.209,92.072,47.3846]
[1643407938619,2.92660539,92.208,92.082,113.5]
[1643407938917,2.92660539,92.21,92.083,0.25]
[1643407939222,2.92660539,92.211,92.091,44.9378459]
[1643407939420,2.61471286,92.209,92.092,107.5]
[1643407939718,27.08421286,92.208,92.092,107.75]
[1643407939918,24.4695,92.208,92.092,107.75]
[1643407940217,16.288,92.19,92.092,107.75]
[1643407941319,16.288,92.19,92.093,2.95669142]
[1643407941519,16.288,92.19,92.094,23.9234]
[1643407941717,16.288,92.19,92.094,24.1734]
[1643407943921,16.288,92.19,92.095,107.5]
[1643407945919,16.288,92.19,92.096,0.25]
[1643407946720,16.288,92.19,92.11,15.61]
[1643407946925,16.288,92.19,92.111,22.5704]
[1643407947121,16.288,92.19,92.111,22.8204]
[1643407947522,16.288,92.19,92.112,107.5]
[1643407947725,16.284,92.21,92.112,110.45669142]
[1643407947925,16.284,92.21,92.113,24.9241]
[1643407948125,16.284,92.21,92.113,24.6741]
[1643407950631,16.284,92.21,92.09,15.61]
[1643407950932,16.292,92.18,92.092,24.7005]
[1643407952833,54.29,92.21,92.092,27.65719142]
[1643407953031,4.44029728,92.262,92.11,0.32102378]
[1643407953032,46.9463,92.243,92.11,0.32102378]
[1643407953232,46.9463,92.243,92.11,15.93102378]
[1643407953632,46.9463,92.243,92.111,3.20669142]
[1643407953856,46.9463,92.243,92.112,47.6709]
[1643407953857,16.283,92.22,92.112,47.6709]
[1643407954061,23.7657,92.219,92.112,47.6709]
[1643407955259,16.287,92.19,92.113,0.25]
[1643407956961,16.287,92.19,92.123,36.61378947]
[1643407957858,16.287,92.19,92.124,23.1221]
[1643407968680,16.287,92.19,92.112,24.6335]
[1643407969382,16.287,92.19,92.113,24.7895]
[1643407969580,16.287,92.19,92.114,43.95237591]
[1643407970782,16.287,92.19,92.113,24.7895]
[1643407971781,16.287,92.19,92.114,42.44876553]
[1643407972883,16.287,92.19,92.115,0.25]
[1643407977390,1.46832614,92.184,92.115,0.25]
[1643407977589,16.288,92.18,92.115,0.25]
[1643407988931,17.75632614,92.18,92.115,0.25]
[1643407992033,17.75632614,92.18,92.114,42.44876553]
[1643407992234,1.46832614,92.179,92.114,42.44876553]
[1643407992435,16.288,92.18,92.114,42.44876553]
[1643407992635,16.289,92.17,92.114,42.44876553]
[1643407994136,16.289,92.17,92.113,24.7895]
[1643408000849,1.46832614,92.196,92.133,0.31369122]
[1643408001045,1.46832614,92.205,92.133,0.31369122]
[1643408001246,1.46832614,92.215,92.133,0.31369122]
[1643408001447,1.46832614,92.218,92.133,0.31369122]
[1643408002048,1.46832614,92.218,92.119,0.25]
[1643408002049,16.283,92.21,92.119,0.25]
[1643408002249,16.283,92.21,92.119,1.76178401]
[1643408002449,16.283,92.21,92.12,2.95669142]
[1643408002656,16.283,92.21,92.12,15.79669142]
[1643408002848,16.283,92.21,92.121,0.25]
[1643408003055,16.283,92.21,92.121,3.20669142]
[1643408003251,16.283,92.21,92.122,2.95669142]
[1643408003753,16.283,92.21,92.123,0.25]
[1643408004353,16.283,92.21,92.124,2.95669142]
[1643408004553,16.283,92.21,92.125,24.6821]
[1643408004852,16.283,92.21,92.126,107.5]
[1643408005252,16.283,92.21,92.127,0.25]
[1643408005855,16.283,92.21,92.127,10.85]
[1643408006056,16.283,92.21,92.128,107.5]
[1643408006253,1.46832614,92.228,92.129,0.25]
[1643408006684,1.46832614,92.231,92.129,0.25]
[1643408007582,1.46832614,92.235,92.129,0.25]
[1643408007782,1.46832614,92.234,92.129,0.25]
[1643408007987,16.279,92.23,92.129,0.25]
[1643408008586,16.279,92.23,92.13,2.95669142]
[1643408008783,16.279,92.23,92.131,0.25]
[1643408008983,16.279,92.23,92.133,107.5]
[1643408009384,16.279,92.23,92.134,3.20669142]
[1643408009784,16.279,92.23,92.135,2.95669142]
[1643408010187,16.279,92.23,92.136,23.1268]
[1643408010384,16.279,92.23,92.137,107.5]
[1643408010585,16.279,92.23,92.137,110.45669142]
[1643408010787,16.279,92.23,92.138,3.20669142]
[1643408010985,16.279,92.23,92.148,107.5]
[1643408011190,16.279,92.23,92.149,23.1515]
[1643408011485,16.279,92.23,92.149,23.4015]
[1643408014389,16.279,92.23,92.15,107.5]
[1643408014789,16.279,92.23,92.151,0.25]
[1643408014999,16.279,92.23,92.149,23.4015]
[1643408015592,16.279,92.23,92.149,22.9015]
[1643408017392,22.7322,92.229,92.149,22.9015]
[1643408017591,16.281,92.21,92.149,22.9015]
[1643408032111,16.281,92.21,92.15,107.5]
[1643408032312,16.281,92.21,92.151,0.25]
[1643408033634,16.281,92.21,92.15,0.25]
[1643408034237,16.281,92.21,92.149,22.4015]
[1643408034436,16.281,92.21,92.15,0.25]
[1643408034641,1.46832614,92.225,92.15,0.25]
[1643408034838,22.7322,92.229,92.15,0.25]
[1643408034839,1.46832614,92.226,92.15,0.25]
[1643408035038,1.46832614,92.227,92.15,0.25]
[1643408035638,16.28,92.22,92.15,0.25]
[1643408036441,16.28,92.22,92.15,107.75]
[1643408037241,16.53,92.22,92.161,49.44258036]
[1643408037453,16.53,92.22,92.162,24.6273]
[1643408041547,16.53,92.22,92.172,6.0]
[1643408042147,16.28,92.22,92.172,6.0]
[1643408043348,16.28,92.22,92.171,6.0]
[1643408045351,16.53,92.22,92.171,6.0]
[1643408048552,16.53,92.22,92.17,0.25]
[1643408048753,16.53,92.22,92.161,49.44258036]
[1643408049151,16.28,92.22,92.161,49.44258036]
[1643408052756,16.53,92.22,92.161,49.44258036]
[1643408053558,0.25,92.22,92.162,22.514]
[1643408053857,22.7322,92.229,92.162,22.514]
[1643408055756,22.7322,92.229,92.144,1.51178401]
[1643408055957,16.28,92.22,92.137,1.51178401]
[1643408056156,16.28,92.22,92.133,1.51178401]
[1643408056356,16.53,92.22,92.132,1.51178401]
[1643408056760,54.285,92.21,92.131,37.11670438]
[1643408056960,22.7904,92.209,92.132,23.6322]
[1643408058057,16.286,92.2,92.132,23.6322]
[1643408061359,16.536,92.2,92.132,23.6322]
[1643408065265,16.536,92.2,92.131,37.11670438]
[1643408066463,16.536,92.2,92.132,23.7479]
[1643408074503,16.536,92.2,92.131,37.11670438]
[1643408075709,16.286,92.2,92.131,37.11670438]
[1643408076204,16.286,92.2,92.114,22.665]
[1643408076406,31.896,92.2,92.103,1.51178401]
[1643408076606,16.294,92.18,92.103,1.51178401]
[1643408076809,24.0615,92.179,92.087,1.51178401]
[1643408077009,24.0615,92.179,92.085,1.51178401]
[1643408077207,42.32633359,92.179,92.086,40.04141843]
[1643408077406,18.26483359,92.178,92.086,40.04141843]
[1643408078108,16.296,92.16,92.086,40.04141843]
[1643408079010,16.296,92.16,92.087,22.8485]
[1643408081612,16.296,92.16,92.086,40.04141843]
[1643408083113,16.546,92.16,92.086,40.04141843]
[1643408083713,16.296,92.14,92.086,40.04141843]
[1643408086917,16.546,92.14,92.086,40.04141843]
[1643408089027,16.546,92.14,92.087,24.1828]
[1643408089828,16.296,92.14,92.087,24.1828]
[1643408091132,16.546,92.14,92.087,24.1828]
[1643408097256,16.296,92.14,92.088,0.25]
[1643408100963,24.211,92.159,92.088,0.25]
[1643408100964,16.291,92.16,92.088,0.25]
[1643408101365,16.291,92.16,92.088,107.75]
[1643408101666,54.296,92.19,92.088,107.75]
[1643408101864,1.46832614,92.2,92.089,23.6485]
[1643408102066,1.46832614,92.205,92.091,1.51178401]
[1643408102264,1.46832614,92.205,92.092,0.25]
[1643408102664,1.46832614,92.206,92.092,11.29178401]
[1643408102865,1.46832614,92.206,92.093,107.5]
[1643408103066,16.288,92.18,92.093,107.5]
[1643408103365,16.288,92.18,92.095,1.51178401]
[1643408103767,16.288,92.18,92.096,0.25]
[1643408104364,16.288,92.18,92.096,1.76178401]
[1643408104765,16.288,92.18,92.096,0.25]
[1643408104966,16.288,92.18,92.097,1.51178401]
[1643408105366,16.288,92.18,92.098,0.25]
[1643408105767,16.288,92.18,92.1,1.51178401]
[1643408105967,16.288,92.18,92.101,1.51178401]
[1643408106165,16.288,92.18,92.101,109.26178401]
[1643408106467,24.878,92.179,92.102,24.05688401]
[1643408106666,24.878,92.179,92.102,22.5451]
[1643408108069,24.878,92.179,92.103,0.25]
[1643408109276,0.25,92.178,92.103,0.25]
[1643408112280,16.288,92.18,92.103,0.25]
[1643408112478,16.288,92.18,92.103,12.95]
[1643408112879,16.284,92.2,92.104,107.5]
[1643408113280,16.284,92.2,92.105,0.25]
[1643408113681,16.284,92.2,92.105,1.76178401]
[1643408114085,16.284,92.2,92.106,1.51178401]
[1643408114286,16.284,92.2,92.107,0.25]
[1643408114684,16.284,92.2,92.107,1.76178401]
[1643408115288,16.284,92.2,92.107,0.25]
[1643408115487,16.284,92.2,92.104,109.01178401]
[1643408115888,0.25,92.199,92.104,107.5]
[1643408116087,16.287,92.18,92.104,107.5]
[1643408116288,0.25,92.179,92.104,107.5]
[1643408116794,0.25,92.179,92.105,0.25]
[1643408119314,0.25,92.179,92.104,0.25]
[1643408119513,0.25,92.179,92.104,1.76178401]
[1643408120114,0.25,92.179,92.104,0.25]
[1643408120315,0.25,92.179,92.104,1.76178401]
[1643408122018,22.8661,92.205,92.104,1.76178401]
[1643408122221,22.8661,92.205,92.108,1.51178401]
[1643408122425,54.284,92.21,92.108,13.19178401]
[1643408122621,54.273,92.23,92.131,0.32436662]
[1643408122820,2.92660539,92.25,92.155,0.31621196]
[1643408123122,24.6491,92.263,92.155,0.31621196]
[1643408123123,16.276,92.26,92.156,46.53427076]
[1643408123322,16.276,92.26,92.157,46.7601]
[1643408123518,16.276,92.26,92.167,6.0]
[1643408123919,16.276,92.26,92.168,27.96089142]
[1643408124322,16.276,92.26,92.17,40.96376032]
[1643408124722,16.276,92.26,92.171,0.25]
[1643408125521,16.276,92.26,92.172,2.95669142]
[1643408125924,0.25,92.259,92.173,0.25]
[1643408126328,0.25,92.259,92.171,107.5]
[1643408126622,0.25,92.259,92.173,0.25]
[1643408127624,22.7112,92.288,92.172,0.25]
[1643408128024,0.25,92.287,92.171,107.5]
[1643408129123,16.273,92.27,92.171,107.5]
[1643408129328,16.273,92.27,92.17,40.96376032]
[1643408129927,14.58524286,92.269,92.17,40.96376032]
[1643408130123,24.8132,92.268,92.17,40.96376032]
[1643408131128,16.281,92.24,92.17,40.96376032]
[1643408132528,16.281,92.24,92.158,24.0429]
[1643408133128,16.281,92.22,92.158,24.0429]
[1643408133328,16.281,92.22,92.13,16.278]
[1643408133530,16.281,92.22,92.158,39.18395753]
[1643408136735,0.25,92.219,92.158,39.18395753]
[1643408142062,16.283,92.21,92.158,39.18395753]
[1643408143864,16.28,92.23,92.158,39.18395753]
[1643408144668,16.28,92.23,92.159,23.4383]
[1643408146166,16.281,92.22,92.159,23.4383]
[1643408149570,16.281,92.22,92.16,0.25]
[1643408149872,0.25,92.219,92.16,0.25]
[1643408150068,0.25,92.219,92.159,23.4383]
[1643408150268,0.25,92.219,92.16,0.25]
[1643408151468,16.283,92.21,92.16,0.25]
[1643408153772,54.274,92.24,92.16,0.25]
[1643408153773,16.28,92.23,92.16,0.25]
[1643408155575,16.28,92.23,92.159,23.4383]
[1643408156779,0.25,92.229,92.16,0.25]
[1643408156974,16.281,92.22,92.16,0.25]
[1643408159179,16.278,92.24,92.16,0.25]
[1643408161178,16.28,92.23,92.16,0.25]
[1643408161380,24.8685,92.229,92.16,0.25]
[1643408161579,24.8685,92.229,92.159,23.4383]
[1643408163181,24.8685,92.229,92.16,0.25]
[1643408165289,0.25,92.228,92.16,0.25]
[1643408166284,22.8228,92.248,92.16,0.25]
[1643408166488,0.25,92.247,92.16,0.25]
[1643408166984,16.279,92.23,92.16,0.25]
[1643408169291,0.25,92.229,92.16,0.25]
[1643408170292,24.6765,92.229,92.16,0.25]
[1643408171519,0.25,92.229,92.16,0.25]
[1643408172018,0.25,92.229,92.159,23.4383]
[1643408172220,23.558,92.229,92.159,23.4383]